[Event "41st Amateur D7"]
[Site "ChessGUI4"]
[Date "2013.07.11"]
[Round "30.4"]
[White "ProChess 1.02AD"]
[Black "ChessKiss 1.7 64-bit"]
[Result "1/2-1/2"]
[BlackElo "2214"]
[ECO "D58"]
[EventDate "2013.??.??"]
[TimeControl "40/1500:40/1500:40/1500"]
[WhiteElo "2244"]

{ i5 Quad } 1.d4 { [%eval 0,1] [%emt 0:00:00] } 1...Nf6
{ [%eval 0,1] [%emt 0:00:00] } 2.c4 { [%eval 0,1] [%emt 0:00:00] } 2...e6
{ [%eval 0,1] [%emt 0:00:00] } 3.Nf3 { [%eval 0,1] [%emt 0:00:00] } 3...d5
{ [%eval 0,1] [%emt 0:00:00] } 4.Nc3 { [%eval 0,1] [%emt 0:00:00] } 4...Be7
{ [%eval 0,1] [%emt 0:00:00] } 5.Bg5 { [%eval 0,1] [%emt 0: 00:00] } 5...h6
{ [%eval 0,1] [%emt 0:00:00] } 6.Bh4 { [%eval 0,1] [%emt 0:00:00] } 6...O-O
{ [%eval 0,1] [%emt 0:00:00] } 7.e3 { [%eval 0,1] [%emt 0:00:00] } 7...b6
{ [%eval 0,1] [%emt 0:00:00] } 8.Bd3 { [%eval 0,1] [%emt 0:00:00] } 8...dxc4
{ [%eval 0,1] [%emt 0: 00:00] } 9.Bxc4 { [%eval 26,13] [%emt 0:00:53] }
9...Bb7 { [%eval -48,12] [%emt 0:00: 43] (Nc6) } 10.O-O
{ [%eval 20,12] [%emt 0:03:39] (O-O) } 10...Nc6
{ [%eval -62,11] [%emt 0:00:41] (Nd5) } 11.Bg3
{ [%eval 25,11] [%emt 0:00:47] (Rc1) } 11...a6
{ [%eval -26,11] [%emt 0:00:40] (Bb4) } 12.Re1
{ [%eval 23,11] [%emt 0:01:18] (Rc1) } 12...Nh5
{ [%eval -7,12] [%emt 0:00:39] (b5) } 13.Be5
{ [%eval 22,12] [%emt 0:00:35] (Be5) } 13...b5
{ [%eval -14,12] [%emt 0:00:38] (b5) } 14.Bd3
{ [%eval 23,12] [%emt 0:02:03] (Bd3) } 14...Nxe5
{ [%eval -14,12] [%emt 0:00:37] (f6) } 15.dxe5
{ [%eval 42,12] [%emt 0:00:49] (Nxe5) } 15...Bxf3
{ [%eval 9,13] [%emt 0:00:35] (c5) } 16.gxf3
{ [%eval 47, 13] [%emt 0:00:40] (Qxf3) } 16...Bb4
{ [%eval 10,12] [%emt 0:00:34] (b4) } 17.f4
{ [%eval 63,12] [%emt 0:00:32] (f4) } 17...Qh4
{ [%eval -12,12] [%emt 0:00:32] (g6) } 18.Qf3
{ [%eval 68,11] [%emt 0:00:40] (Qf3) } 18...Rad8
{ [%eval -14,11] [%emt 0:00:33] (Rfd8) } 19.Be2
{ [%eval 91,13] [%emt 0:00:48] (Red1) } 19...g6
{ [%eval -21,12] [%emt 0:00:32] (g6) } 20.Qc6
{ [%eval 91,12] [%emt 0:01:02] (Rad1) } 20...Rd2
{ [%eval -27, 10] [%emt 0:00:31] (Rd2) } 21.a3
{ [%eval 90,11] [%emt 0:00:35] (a3) } 21...Bxc3
{ [%eval -44,12] [%emt 0:00:29] (Bxc3) } 22.Qxc3
{ [%eval 78,11] [%emt 0:00:16] (bxc3) } 22...Rxe2
{ [%eval -18,12] [%emt 0:00:18] (Rfd8) } 23.Rxe2
{ [%eval 0,17] [%emt 0:00:18] (Rxe2) } 23...Qg4+
{ [%eval 0,15] [%emt 0:00:28] (Qg4) } 24.Kf1
{ [%eval 0,18] [%emt 0:00:20] (Kf1) } 24...Qh3+
{ [%eval 0,16] [%emt 0:00:28] (Qh3) } 25.Kg1
{ [%eval 0,18] [%emt 0:04:48] (Kg1) } 25...Qg4+
{ [%eval 0,17] [%emt 0:00:27] (Qg4) } 26.Kf1
{ [%eval 0,27] [%emt 0:00:07] (Kf1) } 26...Qh3+
{ [%eval 0,17] [%emt 0:00:26] } 27.Kg1 { [%eval 0,19] [%emt 0:00:10] (Kg1) }
27...Qg4+ { [%eval 0,18] [%emt 0:00:25] } 1/2-1/2

[Event "41st Amateur D7"]
[Site "ChessGUI4"]
[Date "2013.07.10"]
[Round "30.5"]
[White "MadChess 1.2"]
[Black "Shallow 1.0 64-bit"]
[Result "1/2-1/2"]
[BlackElo "2200"]
[ECO "E31"]
[EventDate "2013.??.??"]
[TimeControl "40/1500:40/1500:40/1500"]
[WhiteElo "2200"]

{ i5 Quad } 1.d4 { [%eval 0,1] [%emt 0:00:00] } 1...Nf6
{ [%eval 0,1] [%emt 0:00:00] } 2.c4 { [%eval 0,1] [%emt 0:00:00] } 2...e6
{ [%eval 0,1] [%emt 0:00:00] } 3.Nc3 { [%eval 0,1] [%emt 0:00:00] } 3...Bb4
{ [%eval 0,1] [%emt 0:00:00] } 4.Bg5 { [%eval 0, 1] [%emt 0:00:00] } 4...c5
{ [%eval 0,1] [%emt 0:00:00] } 5.d5 { [%eval 0,1] [%emt 0: 00:00] } 5...h6
{ [%eval 0,1] [%emt 0:00:00] } 6.Bh4 { [%eval 0,1] [%emt 0:00:00] } 6...d6
{ [%eval 0,1] [%emt 0:00:00] } 7.e3 { [%eval 0,1] [%emt 0:00:00] } 7...Bxc3+
{ [%eval 0,1] [%emt 0:00:00] } 8.bxc3 { [%eval 0,1] [%emt 0:00:00] } 8...e5
{ [%eval 0,1] [%emt 0:00:00] } 9.Bxf6 { [%eval -24,11] [%emt 0:00:32] }
9...Qxf6 { [%eval 24,15] [%emt 0:00:42] (Qxf6) } 10.Ne2
{ [%eval -2,11] [%emt 0:00:35] (Ne2) } 10...Nd7
{ [%eval 25,14] [%emt 0:00:42] (Bf5) } 11.Ng3
{ [%eval -16,12] [%emt 0:00:25] (Ng3) } 11...Qg5
{ [%eval 22,14] [%emt 0:00:42] (O-O) } 12.Bd3
{ [%eval -5,12] [%emt 0: 01:09] (Bd3) } 12...O-O
{ [%eval 23,13] [%emt 0:00:42] (O-O) } 13.O-O
{ [%eval 1,11] [%emt 0:00:28] (Qd2) } 13...Nf6
{ [%eval 16,14] [%emt 0:00:42] (g6) } 14.f4
{ [%eval 15,12] [%emt 0:00:29] (f4) } 14...Qh4
{ [%eval 16,14] [%emt 0:00:42] (Qh4) } 15.Qe1
{ [%eval 18,11] [%emt 0:00:23] (Qe1) } 15...Kh8
{ [%eval 17,14] [%emt 0:00:42] (Re8) } 16.h3
{ [%eval 38,11] [%emt 0:00:29] (h3) } 16...Nd7
{ [%eval 16,13] [%emt 0:00:42] (Re8) } 17.a4
{ [%eval 46,11] [%emt 0:00:37] (Rc1) } 17...Rb8
{ [%eval 20,13] [%emt 0: 00:42] (exf4) } 18.a5
{ [%eval 56,11] [%emt 0:00:53] (Rd1) } 18...a6
{ [%eval 18,14] [%emt 0:00:42] (exf4) } 19.Bc2
{ [%eval 86,10] [%emt 0:00:33] (Qf2) } 19...b6
{ [%eval 23,14] [%emt 0:00:42] (b6) } 20.Rb1
{ [%eval 75,10] [%emt 0:00:29] (axb6) } 20...bxa5
{ [%eval 63,15] [%emt 0:00:42] (exf4) } 21.Rxb8
{ [%eval 105,13] [%emt 0: 00:40] (Rxb8) } 21...Nxb8
{ [%eval 46,15] [%emt 0:00:42] (Nxb8) } 22.fxe5
{ [%eval 97, 13] [%emt 0:00:25] (fxe5) } 22...dxe5
{ [%eval 6,15] [%emt 0:00:42] (Qxc4) } 23.Ne4
{ [%eval 89,12] [%emt 0:00:25] (Ne4) } 23...Qe7
{ [%eval -1,15] [%emt 0:00:42] (Qe7) } 24.Nd2
{ [%eval 100,11] [%emt 0:00:28] (Qa1) } 24...Qc7
{ [%eval -4,14] [%emt 0:01:08] (Nd7) } 25.Qa1
{ [%eval 97,13] [%emt 0:03:04] (Qa1) } 25...Nd7
{ [%eval 3,14] [%emt 0: 00:41] (Nd7) } 26.Nb3
{ [%eval 93,11] [%emt 0:00:33] (Nb3) } 26...e4
{ [%eval 6,14] [%emt 0:00:41] (e4) } 27.Nxa5
{ [%eval 77,11] [%emt 0:00:20] (Kh1) } 27...Nf6
{ [%eval 16,13] [%emt 0:00:41] (f5) } 28.Rf4
{ [%eval 106,11] [%emt 0:00:33] (Re1) } 28...Nh5
{ [%eval 33,15] [%emt 0:00:41] (Nh5) } 29.Rf2
{ [%eval 46,13] [%emt 0:00: 45] (Rf2) } 29...Qg3
{ [%eval 28,14] [%emt 0:00:41] (Qg3) } 30.Qc1
{ [%eval 44,13] [%emt 0:00:37] (Qe1) } 30...Bxh3
{ [%eval 37,14] [%emt 0:00:41] (Bxh3) } 31.Bxe4
{ [%eval 66,13] [%emt 0:00:34] (Bxe4) } 31...Nf6
{ [%eval 41,14] [%emt 0:00:41] (Nf6) } 32.Bf3
{ [%eval 41,14] [%emt 0:02:18] (Bf3) } 32...Nh7
{ [%eval 39,13] [%emt 0:00:41] (Re8) } 33.Rf1
{ [%eval 76,13] [%emt 0:01:56] (Qc2) } 33...Ng5
{ [%eval 36,13] [%emt 0: 00:41] (Ng5) } 34.Qd2
{ [%eval 52,12] [%emt 0:00:30] (Qb2) } 34...Bg4
{ [%eval 27,13] [%emt 0:00:41] (Rc8) } 35.Bxg4
{ [%eval 106,12] [%emt 0:00:23] (Bxg4) } 35...Qxg4
{ [%eval 36,13] [%emt 0:00:41] (Qxg4) } 36.d6
{ [%eval 72,12] [%emt 0:00:34] (d6) } 36...Qe4
{ [%eval 29,13] [%emt 0:00:41] (Rb8) } 37.d7
{ [%eval 56,13] [%emt 0:00:51] (Rd1) } 37...Rd8
{ [%eval 33,14] [%emt 0:00:41] (Rd8) } 38.Rd1
{ [%eval 0,14] [%emt 0: 00:50] (Rd1) } 38...Ne6
{ [%eval 21,12] [%emt 0:00:41] (Nh7) } 39.Qd3
{ [%eval 15,14] [%emt 0:00:32] (Qd3) } 39...Qxd3
{ [%eval 18,15] [%emt 0:00:41] (Qxd3) } 40.Rxd3
{ [%eval 11,17] [%emt 0:00:37] (Rxd3) } 40...Nf8
{ [%eval 21,17] [%emt 0:00:41] (Nf8) } 41.Rd5
{ [%eval 10,17] [%emt 0:06:04] (Nb3) } 41...Rxd7
{ [%eval 25,15] [%emt 0:00:37] (Rxd7) } 42.Nb3
{ [%eval 10,16] [%emt 0:03:46] (Rxc5) } 42...Rxd5
{ [%eval 81,18] [%emt 0:00:37] (Kg8) } 43.cxd5
{ [%eval 28,15] [%emt 0:00:46] (cxd5) } 43...Nd7
{ [%eval 81,17] [%emt 0:00:37] (Nd7) } 44.Kf2
{ [%eval 1,14] [%emt 0:00:27] (e4) } 44...Kg8
{ [%eval 81,17] [%emt 0:00:37] (g5) } 45.e4
{ [%eval 17,14] [%emt 0:01:54] (e4) } 45...Kf8
{ [%eval 78,16] [%emt 0:00:37] (Kf8) } 46.Ke3
{ [%eval 16,14] [%emt 0: 00:42] (Ke3) } 46...Ke7
{ [%eval 78,16] [%emt 0:00:37] (f6) } 47.Kf4
{ [%eval 17,14] [%emt 0:00:39] (Na5) } 47...h5
{ [%eval 78,15] [%emt 0:00:37] (f6) } 48.e5
{ [%eval 72, 14] [%emt 0:00:37] (Na5) } 48...f6
{ [%eval 81,17] [%emt 0:00:37] (g5) } 49.e6
{ [%eval 74,15] [%emt 0:00:36] (e6) } 49...Nb6
{ [%eval 84,17] [%emt 0:00:37] (Nb6) } 50.c4
{ [%eval 49,15] [%emt 0:00:27] (c4) } 50...Nxc4
{ [%eval 98,17] [%emt 0:00:37] (Nxc4) } 51.Nxc5
{ [%eval 35,15] [%emt 0:00:26] (Nxc5) } 51...Nb6
{ [%eval 99,17] [%emt 0:00:37] (a5) } 52.Ke4
{ [%eval -15,14] [%emt 0:00:20] (Ke4) } 52...a5
{ [%eval 112,17] [%emt 0:00:37] (a5) } 53.Kd4
{ [%eval -4,15] [%emt 0:00:24] (Kd4) } 53...a4
{ [%eval 121,17] [%emt 0:00:37] (a4) } 54.Ne4
{ [%eval -90,15] [%emt 0:00:29] (Ne4) } 54...a3
{ [%eval 115,16] [%emt 0:00:37] (a3) } 55.Nc3
{ [%eval -166,14] [%emt 0:00:22] (Nc3) } 55...Nc8
{ [%eval 100,16] [%emt 0:01:19] (h4) } 56.Na2
{ [%eval -48, 14] [%emt 0:00:26] (Kc5) } 56...g5
{ [%eval 114,17] [%emt 0:00:36] (g5) } 57.Kc5
{ [%eval -67,15] [%emt 0:00:22] (Kc5) } 57...g4
{ [%eval 111,16] [%emt 0:00:36] (h4) } 58.Nb4
{ [%eval -371,14] [%emt 0:00:23] (Nb4) } 58...f5
{ [%eval 215,14] [%emt 0:00: 36] (h4) } 59.Kc6
{ [%eval -266,14] [%emt 0:00:21] (Na2) } 59...f4
{ [%eval 375,17] [%emt 0:00:36] (h4) } 60.Kc7
{ [%eval -317,14] [%emt 0:00:24] (Kc7) } 60...a2
{ [%eval 381,16] [%emt 0:00:36] (a2) } 61.Nc6+
{ [%eval -322,14] [%emt 0:00:11] (Nxa2) } 61...Kf6
{ [%eval 573,14] [%emt 0:00:36] (Kf6) } 62.Kxc8
{ [%eval -501,14] [%emt 0:00:16] (Kxc8) } 62...a1=Q
{ [%eval 616,13] [%emt 0:00:36] (a1=Q) } 63.e7
{ [%eval -483,14] [%emt 0:00:10] (e7) } 63...Qa8+
{ [%eval 612,14] [%emt 0:00:36] (Qa8) } 64.Kc7
{ [%eval -359,15] [%emt 0:00:24] (Kc7) } 64...Qe8
{ [%eval 313,15] [%emt 0:00: 36] (f3) } 65.d6
{ [%eval -243,15] [%emt 0:00:13] (d6) } 65...Ke6
{ [%eval 311,15] [%emt 0:00:36] (Ke6) } 66.Nd4+
{ [%eval -262,15] [%emt 0:00:08] (Nd4) } 66...Kd5
{ [%eval 311,16] [%emt 0:00:36] (Kd5) } 67.Nf5
{ [%eval -243,15] [%emt 0:00:12] (Nf5) } 67...Qc6+
{ [%eval 311,14] [%emt 0:00:36] (Qc6) } 68.Kd8
{ [%eval -232,16] [%emt 0:00:10] (Kd8) } 68...Qb6+
{ [%eval 311,14] [%emt 0:00:36] (Qa8) } 69.Kc8
{ [%eval -232,14] [%emt 0:00:12] (Kd7) } 69...Qa6+
{ [%eval 311,13] [%emt 0:00:36] (Qc5) } 70.Kd8
{ [%eval -232,15] [%emt 0:00:14] (Kd7) } 70...Qa8+
{ [%eval 311,12] [%emt 0: 00:36] (Qa8) } 71.Kd7
{ [%eval -213,17] [%emt 0:00:16] (Kd7) } 71...Qa4+
{ [%eval 241, 12] [%emt 0:00:36] (Qb7) } 72.Kd8
{ [%eval -171,15] [%emt 0:00:11] (Kd8) } 72...Qa8+
{ [%eval 241,12] [%emt 0:00:36] (Qa5) } 73.Kd7
{ [%eval 0,100] [%emt 0:00:01] (Kd7) } 73...Qb7+
{ [%eval 241,12] [%emt 0:00:36] (Qb7) } 74.Kd8
{ [%eval -171,17] [%emt 0:00:22] (Kd8) } 74...Qb8+
{ [%eval 241,11] [%emt 0:00:36] (Qb8) } 75.Kd7
{ [%eval -171,17] [%emt 0:00:00] (Kd7) } 75...Qb5+
{ [%eval 241,12] [%emt 0:00:36] } 76.Kd8
{ [%eval 0,16] [%emt 0:00:34] (Kd8) } 76...Qb6+
{ [%eval 241,11] [%emt 0:00:36] (Qa5) } 77.Kd7
{ [%eval 0,100] [%emt 0:00:00] (Kd7) } 77...Qa7+
{ [%eval 165,11] [%emt 0:00:36] } 78.Kd8
{ [%eval 0,17] [%emt 0:00:40] (Kd8) } 78...Qb8+
{ [%eval 135,11] [%emt 0:00:36] (Qa8) } 79.Kd7
{ [%eval 0,17] [%emt 0:00:00] (Kd7) } 79...Qb1
{ [%eval 129,12] [%emt 0:00:36] } 80.e8=Q
{ [%eval -191,14] [%emt 0:00:21] (e8=Q) } 80...Qxf5+
{ [%eval 130,12] [%emt 0:00:36] (Qxf5) } 81.Kc7
{ [%eval -158,16] [%emt 0:01:23] (Kc7) } 81...Qc2+
{ [%eval 135,12] [%emt 0:00:37] (Qc2) } 82.Kd8
{ [%eval -144,15] [%emt 0:04:12] (Kd8) } 82...Kxd6
{ [%eval 135,12] [%emt 0:00:37] (Kxd6) } 83.Qe7+
{ [%eval -146,15] [%emt 0:00:58] (Qe7) } 83...Kd5
{ [%eval 134,11] [%emt 0:00:37] (Kd5) } 84.Qf7+
{ [%eval -157,14] [%emt 0:00:27] (Qf7) } 84...Kd4
{ [%eval 133,11] [%emt 0:00: 37] (Kd4) } 85.Qxf4+
{ [%eval -159,14] [%emt 0:00:58] (Qxf4) } 85...Qe4
{ [%eval 134, 10] [%emt 0:00:37] (Qe4) } 86.Qd2+
{ [%eval -161,14] [%emt 0:01:14] (Qf6) } 86...Qd3
{ [%eval 134,10] [%emt 0:00:37] (Ke5) } 87.Qf2+
{ [%eval -159,13] [%emt 0:00:40] (Qg5) } 87...Ke5+
{ [%eval 137,9] [%emt 0:00:37] (Qe3) } 88.Ke7
{ [%eval -159,13] [%emt 0:00:43] (Kc7) } 88...Qh7+
{ [%eval 137,9] [%emt 0:00:37] (Qh7) } 89.Kd8
{ [%eval -163,15] [%emt 0:00:41] (Kd8) } 89...Qe4
{ [%eval 137,9] [%emt 0:00:37] (Qg8) } 90.Ke7
{ [%eval -167,14] [%emt 0:01:37] (Kc7) } 90...Qb4+
{ [%eval 137,10] [%emt 0:00: 37] (Qb4) } 91.Ke8
{ [%eval -176,14] [%emt 0:00:30] (Ke8) } 91...Qe4
{ [%eval 137,10] [%emt 0:00:37] (Qd4) } 92.Ke7
{ [%eval 0,16] [%emt 0:00:34] (Ke7) } 92...Qh7+
{ [%eval 137,9] [%emt 0:00:37] (Qb4) } 93.Kd8
{ [%eval 0,100] [%emt 0:00:00] (Kd8) } 93...Qg8+
{ [%eval 135,9] [%emt 0:00:37] } 94.Kc7
{ [%eval -178,15] [%emt 0:01:58] (Kc7) } 94...Qc4+
{ [%eval 136,10] [%emt 0:00:37] (Qc4) } 95.Kb8
{ [%eval -181,14] [%emt 0:00:38] (Kb8) } 95...Qd4
{ [%eval 137,10] [%emt 0:00:37] (Qd4) } 96.Qf1
{ [%eval -176,13] [%emt 0:00:27] (Qg3) } 96...h4
{ [%eval 143,10] [%emt 0:00:37] (Qb4) } 97.Qe1+
{ [%eval -167,14] [%emt 0:00:54] (Qc1) } 97...Kd6
{ [%eval 146,11] [%emt 0:00: 37] (Qe4) } 98.Qxh4
{ [%eval -160,14] [%emt 0:00:25] (Qf1) } 98...Qb6+
{ [%eval 147,10] [%emt 0:00:37] (Qb2) } 99.Ka8
{ [%eval -153,15] [%emt 0:00:22] (Ka8) } 99...Qc6+
{ [%eval 143,10] [%emt 0:00:37] (Qc6) } 100.Ka7
{ [%eval -165,14] [%emt 0:00:10] (Ka7) } 100...Qxg2
{ [%eval 142,11] [%emt 0:00:37] (Qxg2) } 1/2-1/2